fUSD/lending_fUSD_20240923
["ID","MTS","AMOUNT","RATE_DAILY","PERIOD"]
[338979368,1727098243246,-500.0,0.00012899,2]
[338979369,1727098243255,-500.0,0.00012899,2]
[338979370,1727098243264,-310.37700052,0.00012899,2]
[338979371,1727098243273,-500.0,0.00012899,2]
[338979372,1727098243283,-752.81,0.00012899,2]
[338979373,1727098243292,-665.38,0.00012899,2]
[338979374,1727098243301,-705.99,0.00012899,2]
[338979375,1727098243314,-500.0,0.00012899,2]
[338979376,1727098243324,-467.04,0.00012899,2]
[338979377,1727098243333,-518.9386661,0.00012899,2]
[338979378,1727098243342,-500.0,0.00012899,2]
[338979379,1727098243351,-500.0,0.00012899,2]
[338979380,1727098243362,-500.0,0.00012899,2]
[338979381,1727098243371,-500.0,0.00012899,2]
[338979382,1727098243380,-500.0,0.00012899,2]
[338979383,1727098243391,-500.0,0.00012899,2]
[338979384,1727098243401,-1632.15,0.00012899,2]
[338979385,1727098243410,-547.71,0.00012899,2]
[338979386,1727098243419,-1452.04,0.00012899,2]
[338979387,1727098243429,-692.06,0.00012899,2]
[338979388,1727098243440,-500.0,0.00012899,2]
[338979389,1727098243449,-500.0,0.00012899,2]
[338979390,1727098243459,-450.96651103,0.00012899,2]
[338979391,1727098243468,-500.0,0.00012899,2]
[338979392,1727098243477,-1371.08,0.00012899,2]
[338979393,1727098243490,-500.0,0.00012899,2]
[338979394,1727098243506,-500.0,0.00012899,2]
[338979395,1727098243514,-500.0,0.00012899,2]
[338979396,1727098243523,-500.0,0.00012899,2]
[338979397,1727098243532,-500.0,0.00012899,2]
[338979398,1727098243541,-500.0,0.00012899,2]
[338979399,1727098243550,-500.0,0.00012899,2]
[338979400,1727098243559,-500.0,0.00012899,2]
[338979401,1727098243568,-500.0,0.00012899,2]
[338979402,1727098243578,-500.0,0.00012899,2]
[338979403,1727098243587,-500.0,0.00012899,2]
[338979404,1727098243597,-2602.57,0.00012899,2]
[338979405,1727098243606,-252.19,0.00012899,2]
[338979406,1727098243615,-500.0,0.00012899,2]
[338979407,1727098243624,-500.0,0.00012899,2]
[338979408,1727098243633,-587.94,0.00012899,2]
[338979409,1727098243642,-413.84,0.00012899,2]
[338979410,1727098243651,-500.0,0.00012899,2]
[338979411,1727098243661,-500.0,0.00012899,2]
[338979412,1727098243671,-500.0,0.00012899,2]
[338979413,1727098243680,-500.0,0.00012899,2]
[338979414,1727098243689,-500.0,0.00012899,2]
[338979415,1727098243699,-500.0,0.00012899,2]
[338979416,1727098243708,-500.0,0.00012899,2]
[338979417,1727098243717,-500.0,0.00012899,2]
[338979418,1727098243726,-620.21,0.00012899,2]
[338979419,1727098243744,-500.0,0.00012899,2]
[338979420,1727098243753,-500.0,0.00012899,2]
[338979421,1727098243762,-500.0,0.00012899,2]
[338979422,1727098243772,-679.66,0.00012899,2]
[338979423,1727098243781,-500.0,0.00012899,2]
[338979424,1727098243790,-1231.59,0.00012899,2]
[338979425,1727098243800,-500.0,0.00012899,2]
[338979426,1727098243809,-500.0,0.00012899,2]
[338979427,1727098243819,-566.17,0.00012899,2]
[338979428,1727098243828,-15450.66,0.00012899,2]
[338979429,1727098243837,-1118.24,0.00012899,2]
[338979430,1727098243847,-769.16,0.00012899,2]
[338979431,1727098243855,-500.0,0.00012899,2]
[338979432,1727098243865,-500.0,0.00012899,2]
[338979433,1727098243874,-500.0,0.00012899,2]
[338979434,1727098243884,-978.49,0.00012899,2]
[338979435,1727098243893,-620.78,0.00012899,2]
[338979436,1727098243902,-500.0,0.00012899,2]
[338979437,1727098243911,-2557.33694672,0.00012899,2]
[338979438,1727098243920,-500.0,0.00012899,2]
[338979439,1727098243928,-500.0,0.00012899,2]
[338979440,1727098243937,-842.47,0.00012899,2]
[338979441,1727098243946,-500.0,0.00012899,2]
[338979442,1727098243955,-500.0,0.00012899,2]
[338979443,1727098243964,-500.0,0.00012899,2]
[338979444,1727098243973,-1739.25,0.00012899,2]
[338979445,1727098243983,-500.0,0.00012899,2]
[338979446,1727098243998,-1396.19,0.00012899,2]
[338979447,1727098244007,-500.0,0.00012899,2]
[338979448,1727098244016,-500.0,0.00012899,2]
[338979449,1727098244025,-1783.69,0.00012899,2]
[338979450,1727098244034,-500.0,0.00012899,2]
[338979451,1727098244043,-500.0,0.00012899,2]
[338979452,1727098244051,-500.0,0.00012899,2]
[338979453,1727098244060,-500.0,0.00012899,2]
[338979454,1727098244069,-500.0,0.00012899,2]
[338979455,1727098244078,-500.0,0.00012899,2]
[338979456,1727098244087,-640.39,0.00012899,2]
[338979457,1727098244096,-500.0,0.00012899,2]
[338979458,1727098244105,-500.0,0.00012899,2]
[338979459,1727098244114,-500.0,0.00012899,2]
[338979460,1727098244123,-837.81,0.00012899,2]
[338979461,1727098244133,-500.0,0.00012899,2]
[338979462,1727098244142,-2557.3369467,0.000129,2]
[338979463,1727098244151,-39022.9126,0.000129,2]
[338979464,1727098244161,-7323.6019,0.000129,2]
[338979465,1727098244171,-2493.1279216,0.000129,5]
[338979466,1727098244182,-100000.0,0.000129,2]
[338979467,1727098244191,-689.2802,0.000129,2]
[338979468,1727098244201,-1000.0,0.000129,2]
[338979469,1727098244211,-28333.656,0.000129,2]
[338979470,1727098244223,-1002.0,0.000129,2]
[338979471,1727098244237,-225.36145621,0.000129,2]
[338979472,1727098244246,-700.0,0.000129,4]
[338979473,1727098244255,-152.73552554,0.000129,2]
[338979474,1727098244265,-152.73552554,0.000129,2]
[338979475,1727098244274,-152.73552554,0.000129,2]
[338979476,1727098244283,-152.73552554,0.000129,2]
[338979477,1727098244293,-152.73552554,0.000129,2]
[338979478,1727098244302,-157.22001999,0.000129,2]
[338979479,1727098244313,-152.73552554,0.000129,2]
[338979480,1727098244323,-152.73552554,0.000129,2]
[338979481,1727098244332,-152.73552554,0.000129,2]
[338979482,1727098244342,-152.73552554,0.000129,2]
[338979483,1727098244352,-152.73552554,0.000129,2]
[338979484,1727098244363,-152.73552554,0.000129,2]
[338979485,1727098244372,-152.73552554,0.000129,2]
[338979486,1727098244383,-152.73552554,0.000129,2]
[338979487,1727098244393,-152.73552554,0.000129,2]
[338979488,1727098244403,-152.73552554,0.000129,2]
[338979489,1727098244412,-153.23,0.000129,2]
[338979490,1727098244421,-203.01052151,0.000129,2]
[338979491,1727098244431,-203.51,0.000129,2]
[338979492,1727098244440,-172.07432928,0.000129,2]
[338979493,1727098244450,-172.07432928,0.000129,2]
[338979494,1727098244459,-172.57,0.000129,2]
[338979495,1727098244468,-2557.3369467,0.000129,2]
[338979496,1727098244477,-150.0,0.00012904,2]
[338979497,1727098244489,-150.0,0.00012906,2]
[338979498,1727098244499,-150.0,0.00012906,2]
[338979499,1727098244511,-150.0,0.00012912,2]
[338979500,1727098244520,-150.0,0.00012913,2]
[338979501,1727098244530,-150.0,0.00012916,2]
[338979502,1727098244539,-150.0,0.00012924,2]
[338979503,1727098244550,-150.0,0.00012925,2]
[338979504,1727098244559,-150.0,0.00012932,2]
[338979505,1727098244569,-150.0,0.00012933,2]
[338979506,1727098244577,-150.0,0.00012934,2]
[338979507,1727098244586,-150.0,0.0001294,2]
[338979508,1727098244595,-150.0,0.0001294,2]
[338979509,1727098244605,-150.0,0.00012943,2]
[338979510,1727098244614,-150.0,0.00012944,2]
[338979511,1727098244623,-150.0,0.00012952,2]
[338979512,1727098244633,-150.0,0.00012956,2]
[338979513,1727098244642,-150.0,0.00012957,2]
[338979514,1727098244651,-150.0,0.00012962,2]
[338979515,1727098244660,-150.0,0.00012963,2]
[338979516,1727098244669,-150.0,0.00012966,2]
[338979517,1727098244679,-500.0,0.00012973,2]
[338979518,1727098244688,-500.94262012,0.00012973,2]
[338979519,1727098244697,-194.82412023,0.00012973,2]
[338979520,1727098244706,-160.38745844,0.00012973,2]
[338979521,1727098244716,-201.58239069,0.00012973,2]
[338979522,1727098244725,-500.0,0.00012973,2]
[338979523,1727098244735,-160.85242482,0.00012973,2]
[338979524,1727098244744,-500.0,0.00012973,2]
[338979525,1727098244754,-501.38896339,0.00012973,2]
[338979526,1727098244763,-600.0,0.00012973,2]
[338979527,1727098244772,-203.59185016,0.00012973,2]
[338979528,1727098244782,-508.27647563,0.00012973,2]
[338979529,1727098244791,-500.0,0.00012973,2]
[338979530,1727098244800,-150.0,0.00012973,2]
[338979531,1727098244809,-150.0,0.00012973,2]
[338979532,1727098244818,-150.0,0.00012975,2]
[338979533,1727098244827,-500.0,0.00012978,2]
[338979534,1727098244836,-500.0,0.00012978,2]
[338979535,1727098244845,-844.16,0.00012978,2]
[338979536,1727098244854,-500.0,0.00012978,2]
[338979537,1727098244863,-500.0,0.00012978,2]
[338979538,1727098244873,-500.0,0.00012978,2]
[338979539,1727098244883,-2089.0,0.00012978,2]
[338979540,1727098244892,-2504.12,0.00012978,2]
[338979541,1727098244901,-500.0,0.00012978,2]
[338979542,1727098244910,-500.0,0.00012978,2]
[338979543,1727098244918,-500.0,0.00012978,2]
[338979544,1727098244928,-500.0,0.00012978,2]
[338979545,1727098244937,-500.0,0.00012978,2]
[338979546,1727098244945,-500.0,0.00012978,2]
[338979547,1727098244954,-150.0,0.0001298,2]
[338979548,1727098244963,-150.0,0.0001298,2]
[338979549,1727098244972,-150.0,0.00012982,2]
[338979550,1727098244981,-150.0,0.00012985,2]
[338979551,1727098244991,-150.0,0.00012985,2]
[338979552,1727098245000,-773.74126147,0.00012989,2]
[338979553,1727098245009,-500.0,0.00012989,2]
[338979554,1727098245018,-500.0,0.00012989,2]
[338979555,1727098245027,-500.0,0.00012989,2]
[338979556,1727098245036,-2523.98,0.00012989,2]
[338979557,1727098245045,-3152.38,0.00012989,2]
[338979558,1727098245054,-502.12,0.00012989,2]
[338979559,1727098245063,-438.36,0.00012989,2]
[338979560,1727098245073,-500.0,0.00012989,2]
[338979561,1727098245082,-500.0,0.00012989,2]
[338979562,1727098245091,-500.0,0.00012989,2]
[338979563,1727098245101,-500.0,0.00012989,2]
[338979564,1727098245110,-1085.77,0.00012989,2]
[338979565,1727098245119,-500.0,0.00012989,2]
[338979566,1727098245129,-918.44,0.00012989,2]
[338979567,1727098245138,-3180.38,0.00012989,2]
[338979568,1727098245147,-500.0,0.00012989,2]
[338979569,1727098245157,-500.0,0.00012989,2]
[338979570,1727098245166,-500.0,0.00012989,2]
[338979571,1727098245176,-773.74126147,0.0001299,2]
[338979572,1727098245185,-150.0,0.00012992,2]
[338979573,1727098245194,-150.0,0.00012992,2]
[338979574,1727098245203,-437.10171174,0.00012993,2]
[338979575,1727098245212,-500.0,0.00012993,2]
[338979576,1727098245221,-844.16,0.00012993,2]
[338979577,1727098245231,-500.0,0.00012993,2]
[338979578,1727098245241,-500.0,0.00012993,2]
[338979579,1727098245250,-500.0,0.00012993,2]
[338979580,1727098245259,-2089.0,0.00012993,2]
[338979581,1727098245267,-2504.12,0.00012993,2]
[338979582,1727098245276,-500.0,0.00012993,2]
[338979583,1727098245285,-500.0,0.00012993,2]
[338979584,1727098245294,-500.0,0.00012993,2]
[338979585,1727098245303,-500.0,0.00012993,2]
[338979586,1727098245315,-500.0,0.00012993,2]
[338979587,1727098245325,-500.0,0.00012993,2]
[338979588,1727098245335,-256.96,0.00012994,2]
[338979589,1727098245346,-500.0,0.00012994,2]
[338979590,1727098245357,-500.0,0.00012994,2]
[338979591,1727098245368,-500.0,0.00012994,2]
[338979592,1727098245377,-500.0,0.00012994,2]
[338979593,1727098245387,-500.0,0.00012994,2]
[338979594,1727098245397,-500.0,0.00012994,2]
[338979595,1727098245408,-500.0,0.00012994,2]
[338979596,1727098245418,-500.0,0.00012994,2]
[338979597,1727098245428,-500.0,0.00012994,2]
[338979598,1727098245438,-500.0,0.00012994,2]
[338979599,1727098245448,-500.0,0.00012994,2]
[338979600,1727098245459,-500.0,0.00012994,2]
[338979601,1727098245470,-500.0,0.00012994,2]
[338979602,1727098245479,-500.0,0.00012994,2]
[338979603,1727098245488,-598.37372598,0.00012994,2]
[338979604,1727098245497,-500.0,0.00012994,2]
[338979605,1727098245506,-500.0,0.00012994,2]
[338979606,1727098245516,-500.0,0.00012994,2]
[338979607,1727098245525,-487.7482508,0.00012994,2]
[338979608,1727098245534,-330.58,0.00012994,2]
[338979609,1727098245543,-300.11302523,0.00012994,2]
[338979610,1727098245552,-500.0,0.00012994,2]
[338979611,1727098245561,-500.0,0.00012994,2]
[338979612,1727098245570,-500.0,0.00012994,2]
[338979613,1727098245580,-230.42719626,0.00012994,2]
[338979614,1727098245591,-837.81,0.00012994,2]
[338979615,1727098245600,-271.078,0.00012995,2]
[338979616,1727098245609,-180.407,0.00012995,2]
[338979617,1727098245618,-500.0,0.00012995,2]
[338979618,1727098245628,-844.16,0.00012995,2]
[338979619,1727098245637,-500.0,0.00012995,2]
[338979620,1727098245646,-500.0,0.00012995,2]
[338979621,1727098245655,-500.0,0.00012995,2]
[338979622,1727098245664,-2089.0,0.00012995,2]
[338979623,1727098245674,-2504.12,0.00012995,2]
[338979624,1727098245683,-500.0,0.00012995,2]
[338979625,1727098245692,-500.0,0.00012995,2]
[338979626,1727098245701,-414.5,0.00012995,2]
[338979627,1727098245710,-500.0,0.00012995,2]
[338979628,1727098245719,-490.11,0.00012995,2]
[338979629,1727098245728,-500.0,0.00012995,2]
[338979630,1727098245739,-500.0,0.00012995,2]
[338979631,1727098245747,-587.94,0.00012995,2]
[338979632,1727098245756,-500.0,0.00012995,2]
[338979633,1727098245766,-679.66,0.00012995,2]
[338979634,1727098245775,-500.0,0.00012995,2]
[338979635,1727098245784,-15450.66,0.00012995,2]
[338979636,1727098245794,-320.57,0.00012995,2]
[338979637,1727098245803,-842.47,0.00012995,2]
[338979638,1727098245814,-500.0,0.00012995,2]
[338979639,1727098245825,-1396.19,0.00012995,2]
[338979640,1727098245834,-500.0,0.00012995,2]
[338979641,1727098245843,-500.0,0.00012995,2]
[338979642,1727098245852,-178.92,0.00012995,2]
[338979643,1727098245862,-500.0,0.00012995,2]
[338979644,1727098245872,-500.0,0.00012995,2]
[338979645,1727098245881,-500.0,0.00012995,2]
[338979646,1727098245892,-500.0,0.00012995,2]
[338979647,1727098245902,-500.0,0.00012995,2]
[338979648,1727098245911,-500.0,0.00012995,2]
[338979649,1727098245922,-3854.12421428,0.00012996,2]
[338979650,1727098245933,-500.0,0.00012996,2]
[338979651,1727098245943,-250.42,0.00012996,2]
[338979652,1727098246112,-500.0,0.00012996,2]
[338979653,1727098246122,-500.0,0.00012996,2]
[338979654,1727098246133,-500.0,0.00012996,2]
[338979655,1727098246142,-500.0,0.00012996,2]
[338979656,1727098246151,-500.0,0.00012996,2]
[338979657,1727098246162,-500.0,0.00012996,2]
[338979660,1727098246171,-500.0,0.00012996,2]
[338979661,1727098246181,-500.0,0.00012996,2]
[338979662,1727098246191,-500.0,0.00012996,2]
[338979663,1727098246200,-500.0,0.00012996,2]
[338979664,1727098246209,-500.0,0.00012996,2]
[338979665,1727098246219,-500.0,0.00012996,2]
[338979666,1727098246230,-500.0,0.00012996,2]
[338979667,1727098246243,-500.0,0.00012996,2]
[338979668,1727098246253,-500.0,0.00012996,2]
[338979669,1727098246262,-500.0,0.00012996,2]
[338979670,1727098246271,-500.0,0.00012996,2]
[338979671,1727098246280,-500.0,0.00012996,2]
[338979672,1727098246290,-500.0,0.00012996,2]
[338979673,1727098246299,-500.0,0.00012996,2]
[338979674,1727098246309,-500.0,0.00012996,2]
[338979675,1727098246321,-844.16,0.00012996,2]
[338979676,1727098246331,-844.16,0.00012996,2]
[338979677,1727098246339,-500.0,0.00012996,2]
[338979678,1727098246349,-500.0,0.00012996,2]
[338979679,1727098246360,-500.0,0.00012996,2]
[338979680,1727098246369,-337.57,0.00012996,2]
[338979681,1727098246379,-500.0,0.00012996,2]
[338979682,1727098246388,-500.0,0.00012996,2]
[338979683,1727098246398,-500.0,0.00012996,2]
[338979684,1727098246408,-500.0,0.00012996,2]
[338979685,1727098246417,-500.0,0.00012996,2]
[338979686,1727098246426,-2089.0,0.00012996,2]
[338979687,1727098246435,-2089.0,0.00012996,2]
[338979688,1727098246444,-2504.12,0.00012996,2]
[338979689,1727098246453,-2504.12,0.00012996,2]
[338979690,1727098246462,-500.0,0.00012996,2]
[338979691,1727098246471,-500.0,0.00012996,2]
[338979692,1727098246480,-230.15192038,0.00012996,2]
[338979693,1727098246493,-500.0,0.00012996,2]
[338979694,1727098246502,-500.0,0.00012996,2]
[338979695,1727098246511,-500.0,0.00012996,2]
[338979696,1727098246521,-862.21,0.00012996,2]
[338979697,1727098246529,-500.0,0.00012996,2]
[338979698,1727098246539,-500.0,0.00012996,2]
[338979699,1727098246548,-500.0,0.00012996,2]
[338979700,1727098246557,-500.0,0.00012996,2]
[338979701,1727098246566,-449.81,0.00012996,2]
[338979702,1727098246576,-601.76,0.00012996,2]
[338979703,1727098246585,-500.0,0.00012996,2]
[338979704,1727098246594,-500.0,0.00012996,2]
[338979705,1727098246604,-500.0,0.00012996,2]
[338979706,1727098246613,-358.31093486,0.00012996,2]
[338979707,1727098246623,-500.0,0.00012996,2]
[338979708,1727098246632,-500.0,0.00012996,2]
[338979709,1727098246642,-500.0,0.00012996,2]
[338979710,1727098246651,-500.0,0.00012996,2]
[338979711,1727098246661,-500.0,0.00012996,2]
[338979712,1727098246670,-500.0,0.00012996,2]
[338979713,1727098246680,-500.0,0.00012996,2]
[338979714,1727098246689,-665.38,0.00012996,2]
[338979715,1727098246698,-705.99,0.00012996,2]
[338979716,1727098246708,-500.0,0.00012996,2]
[338979717,1727098246718,-500.0,0.00012996,2]
[338979719,1727098246727,-500.0,0.00012996,2]
[338979721,1727098246739,-1632.15,0.00012996,2]
[338979723,1727098246749,-547.71,0.00012996,2]
[338979725,1727098246758,-1452.04,0.00012996,2]
[338979727,1727098246767,-692.06,0.00012996,2]
[338979729,1727098246777,-1371.08,0.00012996,2]
[338979731,1727098246786,-500.0,0.00012996,2]
[338979733,1727098246795,-500.0,0.00012996,2]
[338979735,1727098246805,-500.0,0.00012996,2]
[338979737,1727098246816,-500.0,0.00012996,2]
[338979739,1727098246826,-500.0,0.00012996,2]
[338979741,1727098246836,-500.0,0.00012996,2]
[338979743,1727098246845,-2602.57,0.00012996,2]
[338979745,1727098246855,-500.0,0.00012996,2]
[338979747,1727098246865,-500.0,0.00012996,2]
[338979749,1727098246874,-500.0,0.00012996,2]
[338979751,1727098246884,-500.0,0.00012996,2]
[338979753,1727098246894,-500.0,0.00012996,2]
[338979755,1727098246903,-500.0,0.00012996,2]
[338979757,1727098246913,-1739.25,0.00012996,2]
[338979759,1727098246922,-500.0,0.00012996,2]
[338979761,1727098246932,-500.0,0.00012996,2]
[338979763,1727098246942,-640.39,0.00012996,2]
[338979765,1727098246951,-462.01,0.00012997,2]
[338979767,1727098246961,-500.0,0.00012997,2]
[338979769,1727098246970,-500.0,0.00012997,2]
[338979771,1727098246980,-500.0,0.00012997,2]
[338979773,1727098246991,-397.81941836,0.00012997,2]
[338979775,1727098247001,-500.0,0.00012997,2]
[338979777,1727098247010,-500.0,0.00012997,2]
[338979778,1727098247019,-500.0,0.00012997,2]
[338979779,1727098247028,-500.0,0.00012997,2]
[338979780,1727098247036,-500.0,0.00012997,2]
[338979781,1727098247047,-500.0,0.00012997,2]
[338979782,1727098247057,-500.0,0.00012997,2]
[338979783,1727098247066,-500.0,0.00012997,2]
[338979784,1727098247076,-500.0,0.00012997,2]
[338979785,1727098247086,-501.33500652,0.00012997,2]
[338979786,1727098247097,-500.0,0.00012997,2]
[338979787,1727098247107,-500.0,0.00012997,2]
[338979788,1727098247117,-500.0,0.00012997,2]
[338979789,1727098247127,-500.0,0.00012997,2]
[338979790,1727098247138,-500.0,0.00012997,2]
[338979791,1727098247150,-500.0,0.00012997,2]
[338979792,1727098247160,-500.0,0.00012997,2]
[338979793,1727098247169,-500.0,0.00012997,2]
[338979794,1727098247179,-500.0,0.00012997,2]
[338979795,1727098247188,-500.0,0.00012997,2]
[338979796,1727098247197,-500.0,0.00012997,2]
[338979797,1727098247206,-500.0,0.00012997,2]
[338979798,1727098247215,-500.0,0.00012997,2]
[338979799,1727098247224,-500.0,0.00012997,2]
[338979800,1727098247234,-501.81332153,0.00012997,2]
[338979801,1727098247254,-500.0,0.00012997,2]
[338979802,1727098247263,-500.0,0.00012997,2]
[338979803,1727098247273,-500.0,0.00012997,2]
[338979804,1727098247283,-500.0,0.00012997,2]
[338979805,1727098247292,-500.0,0.00012997,2]
[338979806,1727098247302,-505.75498921,0.00012997,2]
[338979807,1727098247312,-500.0,0.00012997,2]
[338979808,1727098247323,-500.0,0.00012997,2]
[338979809,1727098247333,-500.0,0.00012997,2]
[338979810,1727098247342,-844.16,0.00012997,2]
[338979811,1727098247351,-844.16,0.00012997,2]
[338979812,1727098247361,-844.16,0.00012997,2]
[338979813,1727098247370,-500.0,0.00012997,2]
[338979814,1727098247379,-500.0,0.00012997,2]
[338979815,1727098247392,-500.0,0.00012997,2]
[338979816,1727098247401,-500.0,0.00012997,2]
[338979817,1727098247410,-500.0,0.00012997,2]
[338979818,1727098247420,-500.0,0.00012997,2]
[338979819,1727098247431,-500.0,0.00012997,2]
[338979820,1727098247441,-500.0,0.00012997,2]
[338979821,1727098247452,-500.0,0.00012997,2]
[338979822,1727098247462,-2089.0,0.00012997,2]
[338979823,1727098247472,-2089.0,0.00012997,2]
[338979824,1727098247483,-2089.0,0.00012997,2]
[338979825,1727098247495,-2504.12,0.00012997,2]
[338979826,1727098247504,-2504.12,0.00012997,2]
[338979827,1727098247513,-2504.12,0.00012997,2]
[338979828,1727098247522,-500.0,0.00012997,2]
[338979829,1727098247531,-500.0,0.00012997,2]
[338979830,1727098247540,-500.0,0.00012997,2]
[338979831,1727098247550,-150.0,0.00012997,2]
[338979832,1727098247560,-500.0,0.00012997,2]
[338979833,1727098247569,-157.05,0.00012997,2]
[338979834,1727098247579,-500.0,0.00012997,2]
[338979835,1727098247590,-500.0,0.00012997,2]
[338979836,1727098247600,-500.0,0.00012997,2]
[338979837,1727098247611,-500.0,0.00012997,2]
[338979838,1727098247620,-500.0,0.00012997,2]
[338979839,1727098247630,-500.0,0.00012997,2]
[338979840,1727098247640,-2523.98,0.00012997,2]
[338979841,1727098247649,-3152.38,0.00012997,2]
[338979842,1727098247658,-502.12,0.00012997,2]
[338979843,1727098247668,-500.0,0.00012997,2]
[338979844,1727098247677,-500.0,0.00012997,2]
[338979845,1727098247688,-500.0,0.00012997,2]
[338979846,1727098247697,-587.94,0.00012997,2]
[338979847,1727098247706,-500.0,0.00012997,2]
[338979848,1727098247716,-500.0,0.00012997,2]
[338979849,1727098247725,-500.0,0.00012997,2]
[338979850,1727098247735,-1085.77,0.00012997,2]
[338979851,1727098247744,-500.0,0.00012997,2]
[338979852,1727098247753,-679.66,0.00012997,2]
[338979853,1727098247763,-500.0,0.00012997,2]
[338979854,1727098247772,-15450.66,0.00012997,2]
[338979855,1727098247781,-918.44,0.00012997,2]
[338979856,1727098247790,-3180.38,0.00012997,2]
[338979857,1727098247801,-842.47,0.00012997,2]
[338979858,1727098247810,-500.0,0.00012997,2]
[338979859,1727098247820,-1396.19,0.00012997,2]
[338979860,1727098247830,-500.0,0.00012997,2]
[338979861,1727098247839,-500.0,0.00012997,2]
[338979862,1727098247849,-338.4,0.00012997,2]
[338979863,1727098247858,-500.0,0.00012997,2]
[338979864,1727098247868,-437.80676757,0.00012997,2]
[338979865,1727098247877,-432.49406505,0.00012997,2]
[338979866,1727098247886,-433.85826711,0.00012997,2]
[338979867,1727098247895,-500.0,0.00012997,2]
[338979868,1727098247904,-500.0,0.00012997,2]
[338979869,1727098247913,-837.81,0.00012997,2]
[338979870,1727098247922,-500.0,0.00012997,2]
[338979871,1727098247931,-500.0,0.00012997,2]
[338979872,1727098247941,-185.41185989,0.00012998,2]
[338979873,1727098247950,-500.0,0.00012998,2]
[338979874,1727098247960,-500.0,0.00012998,2]
[338979875,1727098247969,-500.0,0.00012998,2]
[338979876,1727098247979,-500.0,0.00012998,2]
[338979877,1727098247992,-358.82013107,0.00012998,2]
[338979878,1727098248001,-500.0,0.00012998,2]
[338979879,1727098248011,-500.0,0.00012998,2]
[338979880,1727098248020,-571.79823133,0.00012998,2]
[338979881,1727098248029,-500.0,0.00012998,2]
[338979882,1727098248038,-500.0,0.00012998,2]
[338979883,1727098248047,-447.49399828,0.00012998,2]
[338979884,1727098248057,-501.26797265,0.00012998,2]
[338979885,1727098248067,-500.0,0.00012998,2]
[338979886,1727098248075,-500.0,0.00012998,2]
[338979887,1727098248085,-500.0,0.00012998,2]
[338979888,1727098248094,-500.0,0.00012998,2]
[338979889,1727098248104,-500.0,0.00012998,2]
[338979890,1727098248113,-500.0,0.00012998,2]
[338979891,1727098248122,-176.7642439,0.00012998,2]
[338979892,1727098248132,-560.9075749,0.00012998,2]
[338979893,1727098248141,-500.0,0.00012998,2]
[338979894,1727098248151,-500.0,0.00012998,2]
[338979895,1727098248161,-500.0,0.00012998,2]
[338979896,1727098248171,-500.0,0.00012998,2]
[338979897,1727098248181,-500.0,0.00012998,2]
[338979898,1727098248191,-500.0,0.00012998,2]
[338979899,1727098248200,-500.0,0.00012998,2]